fUSD/lending_fUSD_20260105
["ID","MTS","AMOUNT","RATE_DAILY","PERIOD"]
[400481928,1767639043298,-3304.02707463,0.00017973,2]
[400481929,1767639043311,-1227.73569655,0.00017973,2]
[400481930,1767639043323,-163.04823112,0.00018,2]
[400481931,1767639043339,-368.90644314,0.00018,2]
[400481932,1767639043351,-196205.09905489,0.00018,2]
[400481933,1767639043382,-538733.33261822,0.00018,2]
[400481934,1767639043393,-313.46925845,0.00018,2]
[400481935,1767639043438,-448.80928647,0.00018,2]
[400481936,1767639043449,-26304.00239097,0.00018,2]
[400481940,1767639045650,-2306.23392279,0.00017999,2]
[400481941,1767639045703,-3857.7123853,0.00017999,2]
[400481942,1767639045758,-878.15443804,0.00017999,2]
[400481943,1767639045770,-6327.74399357,0.00017999,2]
[400481944,1767639045780,-28245.32223239,0.00018,2]
[400481945,1767639045791,-3323.0139475,0.00018,2]
[400481950,1767639104713,500.0,0.00016356,2]
[400481951,1767639182613,900.0,0.00016356,2]
[400481958,1767640120973,5368.89,0.00016438,2]
[400481965,1767640231620,-889.25305166,0.00016593,2]
[400481966,1767640231633,-1743.02449284,0.00016593,2]
[400481967,1767640231646,-666.96670514,0.00016593,2]
[400481968,1767640231672,-636.64575036,0.00016593,2]
[400481969,1767640231681,-990.15,0.00016595,2]
[400481970,1767640231691,-166.64,0.00016676,2]
[400481971,1767640231700,-195.0,0.00016762,2]
[400481972,1767640231711,-186.75,0.00016848,2]
[400481973,1767640231721,-999.0,0.0001689,3]
[400481974,1767640231730,-780.0,0.00016985,2]
[400481975,1767640231739,-532.0,0.00016985,2]
[400481976,1767640231748,-313.81424964,0.00016986,2]
[400481977,1767640231764,-420.26169723,0.00016986,2]
[400481978,1767640231776,-325.00010413,0.00016986,2]
[400481979,1767640231787,-2537.233949,0.00016986,2]
[400481980,1767640231797,-250.0,0.00017,2]
[400481981,1767640231812,-775.88563,0.00017,2]
[400481982,1767640231822,-573.61583088,0.00017072,2]
[400481983,1767640231831,-500.0,0.00017072,2]
[400481984,1767640231842,-500.0,0.00017072,2]
[400481985,1767640231853,-324.57,0.00017146,2]
[400481986,1767640231862,-500.0,0.00017173,2]
[400481987,1767640231871,-500.0,0.00017173,2]
[400481988,1767640231881,-500.0,0.00017173,2]
[400481989,1767640231890,-151.0,0.00017314,2]
[400481990,1767640231900,-198.97,0.00017315,2]
[400481991,1767640231910,-151.0,0.00017318,2]
[400481992,1767640231919,-151.0,0.00017319,2]
[400481993,1767640231930,-166.66,0.00017425,2]
[400481994,1767640231939,-585.0,0.00017485,2]
[400481996,1767640231949,-585.0,0.00017495,2]
[400481998,1767640231958,-585.0,0.00017639,2]
[400482000,1767640231968,-605.85025825,0.0001764,2]
[400482002,1767640231977,-166.64,0.00017718,2]
[400482004,1767640231986,-1000.0,0.00017721,2]
[400482006,1767640232000,-964.6041227,0.00017721,2]
[400482008,1767640232010,-1140.17689625,0.00017721,2]
[400482010,1767640232019,-500.0,0.00017726,7]
[400482012,1767640232029,-900.0,0.00017726,7]
[400482015,1767640232039,-585.0,0.00017758,2]
[400482018,1767640232049,-500.0,0.00017808,2]
[400482020,1767640232058,-2435.0,0.00017844,2]
[400482022,1767640232067,-756.0,0.00017875,2]
[400482025,1767640232078,-585.0,0.00017882,2]
[400482027,1767640232088,-250.794,0.00017886,2]
[400482029,1767640232098,-1053.7141568,0.000179,2]
[400482031,1767640232108,-155.5342305,0.000179,2]
[400482033,1767640232119,-585.0,0.00017907,2]
[400482035,1767640232129,-585.0,0.00017962,2]
[400482037,1767640232138,-61.11671472,0.00017973,2]
[400482039,1767640232150,-361.04264806,0.00017973,2]
[400482042,1767640232161,-708.27235126,0.00017973,2]
[400482045,1767640232182,-198.56828596,0.00017973,2]
[400482047,1767640232192,-1404.0,0.00017973,2]
[400482049,1767640232201,-1266.0,0.00017973,2]
[400482051,1767640232211,-913.0,0.00017973,2]
[400482053,1767640232221,-1200.0,0.00017973,2]
[400482055,1767640232231,-300.0,0.00017999,2]
[400482057,1767640232240,-184.3400586,0.00017999,2]
[400482059,1767640232250,-7126.36004676,0.00018,2]
[400482061,1767640232262,-2775.90264677,0.00018,2]
[400482064,1767640232273,-16276.87627361,0.00018,2]
[400482067,1767640232292,-27454.51253657,0.00018,2]
[400482130,1767640237756,-151.0,0.00017315,2]
[400482131,1767640237766,-1435.66,0.00017844,2]
[400482132,1767640237778,-3380.34,0.00017844,2]
[400482133,1767640237787,-202.08566126,0.00017999,2]
[400482134,1767640237796,-189.5407246,0.00017999,2]
[400482135,1767640237807,-500.0,0.00017999,2]
[400482136,1767640237816,-335.89525135,0.00017999,2]
[400482137,1767640237826,-331.51006749,0.00017999,2]
[400482138,1767640237835,-2788781.51206733,0.00018,2]
[400482139,1767640237846,-907.14,0.00018,2]
[400482140,1767640237858,-12746.0,0.00018,2]
[400482141,1767640237916,-348.8999982,0.00018,2]
[400482142,1767640237928,-340.00534089,0.00018,2]
[400482143,1767640237940,-1288.14781073,0.00018,2]
[400482144,1767640238078,-1546.23189645,0.00018,2]
[400482145,1767640238090,-4189.90788,0.00018,2]
[400482146,1767640238105,-4952.5083603,0.00018,2]
[400482160,1767640239714,-1731.41031661,0.00018,2]
[400482162,1767640239925,-4081.75028324,0.00018,2]
[400482163,1767640239939,-2384.78114555,0.00018,2]
[400482164,1767640239997,-603.82967793,0.00018,2]
[400482165,1767640240030,1031.0,0.000124,5]
[400482192,1767640243464,-1180.34036054,0.00018,2]
[400482193,1767640244416,-27368.55521992,0.00018,2]
[400482195,1767640245790,-12942.29999276,0.00018,2]
[400482196,1767640245803,-4325.478,0.00018,2]
[400482197,1767640245815,-134839.98575055,0.00018,2]
[400482198,1767640245828,-104001.97488092,0.00018,2]
[400482199,1767640245896,-1912.99517185,0.00018,2]
[400482200,1767640245910,-3859.8,0.00018,2]
[400482201,1767640245922,-2036.88286414,0.00018,2]
[400482202,1767640245934,-1952.19000006,0.00018,2]
[400482203,1767640245946,-18840.0,0.00018,2]
[400482282,1767640257703,900.0,0.00016356,2]
[400482283,1767640307098,539.37349588,0.00032876,120]
[400482284,1767640314563,500.0,0.00016356,2]
[400482285,1767640323110,500.0,0.00032876,120]
[400482286,1767640328314,400.0,0.00032876,120]
[400482287,1767640336809,351.80658245,0.00032876,120]
[400482288,1767640338436,300.0,0.00032876,120]
[400482289,1767640340142,300.0,0.00032876,120]
[400482290,1767640342071,3373.2,0.00032877,120]
[400482291,1767640342412,500.0,0.00032876,120]
[400482292,1767640342699,500.0,0.00032876,120]
[400482293,1767640342956,500.0,0.00032876,120]
[400482294,1767640343209,567.84,0.00032876,120]
[400482295,1767640345256,257.49938775,0.00032876,120]
[400482296,1767640347269,300.0,0.00032876,120]
[400482297,1767640348426,500.0,0.00032876,120]
[400482298,1767640348705,422.14348852,0.00032876,120]
[400482299,1767640352529,300.0,0.00032876,120]
[400482300,1767640357151,246.25539385,0.00032876,120]
[400482301,1767640361892,400.0,0.00032876,120]
[400482302,1767640372615,300.0,0.00032876,120]
[400482303,1767640376172,500.0,0.00032876,120]
[400482304,1767640376267,232.74698558,0.00032876,120]
[400482305,1767640376413,500.0,0.00032876,120]
[400482306,1767640376701,627.87,0.00032876,120]
[400482307,1767640382691,500.0,0.00032876,120]
[400482308,1767640397372,300.0,0.00032876,120]
[400482309,1767640400777,400.0,0.00032876,120]
[400482310,1767640402427,400.0,0.00032876,120]
[400482311,1767640405888,500.0,0.00032876,120]
[400482312,1767640406164,500.0,0.00032876,120]
[400482313,1767640406422,500.0,0.00032876,120]
[400482314,1767640406659,500.0,0.00032876,120]
[400482315,1767640407707,400.0,0.00032876,120]
[400482316,1767640414324,514.33378857,0.00032876,120]
[400482317,1767640420223,500.0,0.00032876,120]
[400482318,1767640420323,500.0,0.00032876,120]
[400482319,1767640420483,300.0,0.00032876,120]
[400482320,1767640420582,500.0,0.00032876,120]
[400482321,1767640421532,500.0,0.00032876,120]
[400482322,1767640425578,400.0,0.00032876,120]
[400482323,1767640430040,495.22,0.00032876,120]
[400482324,1767640431362,378.72127749,0.00032876,120]
[400482325,1767640432737,215.09555524,0.00032876,120]
[400482326,1767640462013,300.0,0.00032876,120]
[400482327,1767640467261,300.0,0.00032876,120]
[400482328,1767640475829,161.8,0.00032876,120]
[400482329,1767640485600,256.13103612,0.00032876,120]
[400482330,1767640496577,500.0,0.00032876,120]
[400482331,1767640496859,500.0,0.00032876,120]
[400482332,1767640497150,532.11816954,0.00032876,120]
[400482333,1767640501806,500.0,0.00032876,120]
[400482334,1767640502105,331.50536312,0.00032876,120]
[400482335,1767640506173,602.04707612,0.00032876,120]
[400482336,1767640506940,500.0,0.00032876,120]
[400482337,1767640507168,208.08,0.00032876,120]
[400482338,1767640536550,432.28,0.00032876,120]
[400482339,1767640544415,400.0,0.00032876,120]
[400482340,1767640546447,300.0,0.00032876,120]
[400482341,1767640553802,300.0,0.00032876,120]
[400482342,1767640554476,369.39352826,0.00032876,120]
[400482343,1767640563613,500.0,0.00032876,120]
[400482344,1767640563884,500.0,0.00032876,120]
[400482345,1767640564212,500.0,0.00032876,120]
[400482346,1767640572253,400.0,0.00032876,120]
[400482347,1767640582466,400.0,0.00032876,120]
[400482348,1767640585733,500.0,0.00032876,120]
[400482349,1767640585986,500.0,0.00032876,120]
[400482350,1767640586245,500.0,0.00032876,120]
[400482351,1767640586504,500.0,0.00032876,120]
[400482352,1767640586760,500.0,0.00032876,120]
[400482353,1767640587034,500.0,0.00032876,120]
[400482354,1767640587274,373.50571652,0.00032876,120]
[400482355,1767640635818,581.46630838,0.00032876,120]
[400482356,1767640637797,500.0,0.00032876,120]
[400482357,1767640638030,200.0,0.00032876,120]
[400482358,1767640748110,-200.0,0.0001683,2]
[400482359,1767640839123,400.0,0.00032876,120]
[400482360,1767640867114,500.0,0.00019178,30]
[400482361,1767640867559,500.0,0.00019178,30]
[400482362,1767640868027,500.0,0.00019178,30]
[400482363,1767640868470,500.0,0.00019178,30]
[400482364,1767640868918,500.0,0.00019178,30]
[400482365,1767640869394,500.0,0.00019178,30]
[400482366,1767640869852,500.0,0.00019178,30]
[400482367,1767640870338,500.0,0.00019178,30]
[400482368,1767640870799,500.0,0.00019178,30]
[400482369,1767640871228,416.45833618,0.00019178,30]
[400482370,1767640882596,400.0,0.00032876,120]
[400482371,1767640884824,400.0,0.00032876,120]
[400482372,1767640893965,500.0,0.00032876,120]
[400482373,1767640894196,300.0,0.00032876,120]
[400482374,1767640896525,500.0,0.00032876,120]
[400482375,1767640896816,300.0,0.00032876,120]
[400482376,1767641066233,500.0,0.00032876,120]
[400482377,1767641066498,500.0,0.00032876,120]
[400482378,1767641066745,500.0,0.00032876,120]
[400482379,1767641066998,527.03157348,0.00032876,120]
[400482380,1767641082778,640.4,0.00013699,2]
[400482381,1767641148018,500.0,0.00032876,120]
[400482382,1767641148250,500.0,0.00032876,120]
[400482383,1767641148479,500.0,0.00032876,120]
[400482384,1767641148708,500.0,0.00032876,120]
[400482385,1767641199826,400.0,0.00032876,120]
[400482387,1767641270712,249.43962819,0.00032876,120]
[400482388,1767641285641,200.0,0.0001634,2]
[400482392,1767641430097,1062.25,0.00016415,2]
[400482398,1767641431802,-1000.0,0.00016581,2]
[400482400,1767641431811,-250.0,0.00016593,2]
[400482401,1767641431820,-200.0,0.0001668,2]
[400482402,1767641431829,-156.41465164,0.00016772,2]
[400482403,1767641431838,-394.98525984,0.0001683,2]
[400482404,1767641431909,-500.0,0.0001683,2]
[400482405,1767641431928,-1218.76474016,0.0001683,2]
[400482406,1767641431942,-433.0,0.00016871,2]
[400482407,1767641431951,-7370.10610048,0.00016872,2]
[400482408,1767641431963,-1534.47046119,0.00016872,2]
[400482428,1767641432275,-582.05704725,0.00016871,2]
[400482430,1767641432285,-27.84142715,0.00016872,2]
[400482433,1767641432301,-1570.57116541,0.00016872,2]
[400482484,1767641437897,-235.12667594,0.00016871,2]
[400482485,1767641437907,-23.81842802,0.00016872,2]
[400482486,1767641438057,-942.2,0.00016872,2]
[400482498,1767641440109,-500.0,0.00016871,2]
[400482499,1767641440118,-296.43475918,0.00016871,2]
[400482500,1767641440128,-500.0,0.00016871,2]
[400482501,1767641440137,-231.00016381,0.00016871,2]
[400482502,1767641440147,-500.0,0.00016871,2]
[400482503,1767641440156,-500.0,0.00016871,2]
[400482504,1767641440166,-500.0,0.00016871,2]
[400482505,1767641440175,-409.41784374,0.00016871,2]
[400482506,1767641440323,-90.58215626,0.00016871,2]
[400482507,1767641440332,-500.0,0.00016871,2]
[400482508,1767641440342,-85.85171059,0.00016871,2]
[400482509,1767641440353,-312.3352,0.00016871,2]
[400482510,1767641440364,-101.81308941,0.00016871,2]
[400482511,1767641440374,-500.0,0.00016871,2]
[400482513,1767641440384,-646.28823012,0.00016871,2]
[400482515,1767641440396,-166.32744346,0.00016871,2]
[400482527,1767641446314,-333.67255654,0.00016871,2]
[400482528,1767641446324,-500.0,0.00016871,2]
[400482530,1767641446334,-500.0,0.00016871,2]
[400482531,1767641446343,-500.0,0.00016871,2]
[400482532,1767641446352,-500.0,0.00016871,2]
[400482533,1767641446362,-500.0,0.00016871,2]
[400482534,1767641446371,-500.0,0.00016871,2]
[400482535,1767641446381,-500.0,0.00016871,2]
[400482543,1767641446565,-500.0,0.00016871,2]
[400482544,1767641446574,-500.0,0.00016871,2]
[400482545,1767641446583,-500.0,0.00016871,2]
[400482546,1767641446592,-500.0,0.00016871,2]
[400482547,1767641446602,-436.36996907,0.00016871,2]
[400482548,1767641446611,-137406.63169989,0.00016872,2]
[400482549,1767641446622,-72203.0,0.00016872,2]
[400482550,1767641446661,-1038.39988,0.00016872,2]
[400482551,1767641446686,-41205.24547808,0.00016872,2]
[400482552,1767641446696,-411.66224298,0.00016872,2]
[400482553,1767641446747,-120.56822983,0.00016872,2]
[400482554,1767641446758,-275.99999997,0.00016872,2]
[400482555,1767641626812,485.74821594,0.00032876,120]
[400482556,1767641868505,180.0,0.00016439,2]
[400482557,1767641890226,180.0,0.00016471,2]
[400482558,1767641921659,394.58904037,0.00032876,120]
[400482559,1767641963656,150.0,0.00016039,2]
[400482560,1767642265149,166.66,0.00015251,2]
[400482561,1767642265433,166.66,0.00015572,2]
[400482562,1767642265700,166.66,0.00015893,2]
[400482563,1767642265917,166.66,0.00016214,2]
[400482564,1767642434086,-166.66,0.00016535,2]
[400482565,1767642434108,-180.0,0.00016728,2]
[400482566,1767642434130,-300.0,0.00016728,2]
[400482567,1767642434149,-291.0,0.00016728,2]
[400482568,1767642434169,-89.5554163,0.00016751,2]
[400482569,1767642490020,248.22,0.00016027,2]
[400482570,1767642510401,165.65,0.00015991,2]
[400482571,1767642582773,150.0,0.00015986,2]
[400482572,1767642597169,166.67,0.00016465,2]
[400482576,1767642631989,-156.41465161,0.00016671,2]
[400482577,1767642631999,-180.0,0.00016759,2]
[400482578,1767642632008,-899.0,0.00016769,2]
[400482579,1767642632018,-549.49503825,0.00016769,2]
[400482580,1767642632198,-453.50496175,0.00016769,2]
[400482581,1767642632208,-189.5407246,0.0001677,2]
[400482582,1767642632219,-202.08566126,0.0001677,2]
[400482583,1767642632228,-557.43993307,0.0001677,2]
[400482584,1767642632237,-164.58867316,0.0001677,2]
[400482585,1767642632246,-516.25424779,0.0001677,2]
[400482586,1767642632258,-121.00610829,0.0001677,2]
[400482591,1767642636744,500.0,0.00032876,120]
[400482592,1767642636848,500.0,0.00032876,120]
[400482593,1767642637017,500.0,0.00032876,120]
[400482594,1767642637263,500.0,0.00032876,120]
[400482595,1767642637520,500.0,0.00032876,120]
[400482596,1767642637794,596.858418,0.00032876,120]
[400482604,1767642638186,-378.99389171,0.0001677,2]
[400482605,1767642638197,-644.13851468,0.0001677,2]
[400482606,1767642638213,-685630.2868,0.00016771,2]
[400482607,1767642638226,-1000.0,0.00016772,2]
[400482608,1767642638238,-2500.0,0.00016772,2]
[400482609,1767642638249,-180.0,0.00016777,2]
[400482610,1767642638267,-168.0,0.00016791,2]
[400482611,1767642638279,-248.22,0.00016829,2]
[400482612,1767642638291,-166.66,0.00016857,2]
[400482613,1767642638303,-180.0,0.0001686,2]
[400482614,1767642638314,-14399.6970361,0.00016871,2]
[400482615,1767642638327,-163.9396165,0.00016871,2]
[400482616,1767642638339,-163.927252,0.00016871,2]
[400482617,1767642638350,-34109.1045466,0.00016871,2]
[400482618,1767642638361,-140829.2757613,0.00016871,2]
[400482619,1767642638373,-3475.8105545,0.00016871,2]
[400482620,1767642638384,-156.41465161,0.00016876,2]
[400482621,1767642638396,-1000.0,0.00016895,2]
[400482622,1767642638407,-180.0,0.00016895,2]
[400482623,1767642638420,-180.0,0.00016915,2]
[400482624,1767642638432,-837.0,0.00016922,2]
[400482625,1767642638444,-200.0,0.00016932,2]
[400482626,1767642638458,-2122.64,0.00016964,2]
[400482627,1767642638469,-200.0,0.00016983,2]
[400482628,1767642638481,-165.65,0.00016991,2]
[400482629,1767642638496,-250.0,0.00017,2]
[400482630,1767642638508,-156.41465161,0.00017081,2]
[400482631,1767642638518,-734.5740221,0.00017163,2]
[400482632,1767642638529,-501.70391837,0.00017173,2]
[400482633,1767642638540,-500.0,0.00017173,2]
[400482634,1767642638551,-500.0,0.00017173,2]
[400482635,1767642638564,-500.0,0.00017173,2]
[400482636,1767642638576,-500.0,0.00017173,2]
[400482637,1767642638586,-500.0,0.00017173,2]
[400482638,1767642638597,-218.2586549,0.00017173,2]
[400482639,1767642638608,-500.0,0.00017173,2]
[400482640,1767642638619,-500.0,0.00017173,2]
[400482641,1767642638629,-500.0,0.00017173,2]
[400482642,1767642638640,-500.0,0.00017173,2]
[400482643,1767642638652,-635.71123212,0.00017173,2]
[400482644,1767642638663,-151.0,0.00017175,2]
[400482645,1767642638674,-151.0,0.00017175,2]
[400482646,1767642638685,-151.0,0.0001718,2]
[400482647,1767642638696,-151.0,0.0001718,2]
[400482648,1767642638709,-151.0,0.00017185,2]
[400482649,1767642638723,-228.48,0.00017185,2]
[400482650,1767642638734,-500.0,0.0001726,2]
[400482651,1767642638746,-338.0,0.00017279,2]
[400482652,1767642638757,-156.41465161,0.00017286,2]
[400482653,1767642638769,-734.5740221,0.00017286,2]
[400482654,1767642638779,-734.5740221,0.00017409,2]
[400482655,1767642638791,-156.41465161,0.0001749,2]
[400482656,1767642638801,-338.0,0.00017508,2]
[400482657,1767642638811,-1000.0,0.00017528,2]
[400482658,1767642638824,-734.5740221,0.00017532,2]
[400482659,1767642638837,-500.0,0.00017534,7]
[400482660,1767642638850,-800.0,0.00017534,7]
[400482661,1767642638863,-500.0,0.00017534,7]
[400482662,1767642638874,-248.22,0.0001763,2]
[400482663,1767642638886,-338.0,0.00017653,2]
[400482664,1767642638898,-734.5740221,0.00017654,2]
[400482665,1767642638910,-156.41465161,0.00017695,2]
[400482666,1767642638922,-347.68423544,0.00017721,2]
[400482667,1767642638934,-1000.0,0.00017721,2]
[400482668,1767642638950,-1000.0,0.00017721,2]
[400482669,1767642638963,-1000.0,0.00017721,2]
[400482670,1767642638975,-1000.0,0.00017721,2]
[400482671,1767642638987,-500.0,0.00017721,2]
[400482672,1767642638999,-734.5740221,0.00017777,2]
[400482673,1767642639012,-400.0,0.000178,2]
[400482674,1767642639024,-170.0,0.00017817,2]
[400482675,1767642639035,-575.1885,0.0001782,2]
[400482676,1767642639047,-575.1885,0.0001782,2]
[400482677,1767642639058,-575.18851,0.0001782,2]
[400482678,1767642639069,-575.1885,0.0001782,2]
[400482679,1767642639080,-166.67,0.00017824,2]
[400482680,1767642639091,-588.064,0.00017883,2]
[400482681,1767642639101,-338.0,0.00017885,2]
[400482682,1767642639112,-354.89,0.00017887,2]
[400482683,1767642639122,-3458.0,0.00017887,2]
[400482684,1767642639134,-1404.0,0.00017887,2]
[400482685,1767642639144,-614.0,0.00017887,2]
[400482686,1767642639156,-1329.0,0.00017887,2]
[400482687,1767642639169,-1266.0,0.00017887,2]
[400482688,1767642639181,-433.0,0.00017887,2]
[400482689,1767642639197,-565.0,0.00017887,2]
[400482690,1767642639209,-3690.937,0.00017887,2]
[400482691,1767642639221,-6574.462,0.00017887,2]
[400482692,1767642639233,-176.00373244,0.000179,2]
[400482693,1767642639245,-734.5740221,0.000179,2]
[400482694,1767642639257,-156.41465161,0.000179,2]
[400482695,1767642639270,-181.45660226,0.000179,2]
[400482696,1767642639281,-1088.83796205,0.000179,2]
[400482697,1767642639293,-170.0,0.00017968,2]
[400482698,1767642639305,-215.11491997,0.00017973,2]
[400482699,1767642639315,-500.0,0.00017973,2]
[400482700,1767642639325,-336.03289894,0.00017973,2]
[400482701,1767642639335,-165.65,0.0001799,2]
[400482702,1767642639346,-1869.10634115,0.00017999,5]
[400482703,1767642639357,-129826.92373489,0.00018,2]
[400482704,1767642639370,-1733308.29122914,0.00018,2]
[400482705,1767642639382,-1187.72537298,0.00018,2]
[400482706,1767642639395,-269.87428179,0.00018,2]
[400482707,1767642639407,-178.3,0.00018,7]
[400482708,1767642639420,-151.0,0.00018,2]
[400482709,1767642639435,-908.77538737,0.00018,2]
[400482710,1767642639447,-1052581.08827326,0.00018,2]
[400482711,1767642639694,-350078.80739434,0.00018,2]
[400482712,1767642639726,-402.79923305,0.00018,2]
[400482713,1767642639749,-421.61959037,0.00018,2]
[400482714,1767642639768,-5213.49399648,0.00018,2]
[400482715,1767642639780,-871.643,0.00018,2]
[400482716,1767642639799,-916.60502421,0.00018,2]
[400482717,1767642640315,-1288.16,0.00016671,2]
[400482720,1767642640740,-11292.0,0.00016671,2]
[400482721,1767642640954,-797.9158265,0.00016671,2]
[400482745,1767642643780,-528.1752,0.00016671,2]
[400482746,1767642643792,-454.26,0.00016671,2]
[400482747,1767642644412,-1000.0,0.00016671,2]
[400482755,1767642646196,-2780.0,0.00016671,2]
[400482804,1767642694067,588.064,0.00016338,2]
[400482806,1767643198585,5106.91,0.00016438,2]
[400482807,1767643243426,-2500.0,0.00016571,2]
[400482808,1767643243452,-1167.4307,0.00016571,2]
[400482809,1767643243481,-157.78790583,0.00016571,2]
[400482810,1767643243508,-1000.0,0.00016619,2]
[400482811,1767643243533,-999.0,0.0001662,3]
[400482812,1767643243559,-300.0,0.00016669,2]
[400482813,1767643243584,-489.6609734,0.0001667,2]
[400482814,1767643243612,-215.98064662,0.0001667,2]
[400482815,1767643243641,-500.0,0.0001667,2]
[400482816,1767643243670,-523.13240639,0.0001667,2]
[400482817,1767643243702,-981859.4889735,0.00016671,2]
[400482818,1767643243725,-1000.0,0.00016671,2]
[400482819,1767643243750,-357.35894904,0.0001677,2]
[400482820,1767643243775,-157.78790577,0.00016793,2]
[400482821,1767643243804,-756.0,0.00016895,2]
[400482822,1767643243832,-1416.96,0.00016987,2]
[400482823,1767643244740,354.985,0.00016571,2]
[400482824,1767643257037,2500.0,0.00016571,2]
[400482825,1767643288967,500.0,0.00032876,120]
[400482826,1767643289257,500.0,0.00032876,120]
[400482827,1767643289530,500.0,0.00032876,120]
[400482828,1767643289797,500.0,0.00032876,120]
[400482829,1767643290038,500.0,0.00032876,120]
[400482830,1767643290303,234.85099281,0.00032876,120]
[400482831,1767643312733,250.0,0.00017,2]
[400482832,1767643326626,236.4176,0.00016571,2]
[400482833,1767643330332,500.0,0.00032876,120]
[400482834,1767643330560,500.0,0.00032876,120]
[400482835,1767643330804,500.0,0.00032876,120]
[400482836,1767643331045,500.0,0.00032876,120]
[400482837,1767643331263,636.88730728,0.00032876,120]
[400482838,1767643363016,448.45496771,0.0001667,2]
[400482839,1767643373140,2809.55397174,0.00016571,2]
[400482840,1767643521572,157.78790577,0.00016471,2]
[400482841,1767643530249,1066.49208597,0.00032876,120]
[400482842,1767643594553,161.08913943,0.00016471,2]
[400482856,1767643832256,-342.76268138,0.0001657,2]
[400482857,1767643832266,-47.61003793,0.0001657,2]
[400482858,1767643832310,-103.5764147,0.0001657,2]
[400482859,1767643832320,-500.0,0.0001657,2]
[400482860,1767643832329,-734.57402212,0.0001657,2]
[400482861,1767643832339,-144.75109378,0.0001657,2]
[400482862,1767643832350,-16.33804564,0.0001657,2]
[400482863,1767643832360,-197.49417882,0.0001657,2]
[400482864,1767643832370,-801.33065434,0.00016571,2]
[400482865,1767643832380,-1111.79715654,0.00016571,2]
[400482866,1767643832391,-32537.20582113,0.00016571,2]
[400482874,1767643838273,-5433.50727588,0.00016571,2]
[400482875,1767643838286,-5348.60638842,0.00016571,2]
[400482876,1767643838299,-22930.71980492,0.00016571,2]
[400482877,1767643838310,-929027.27892703,0.00016571,2]
[400482878,1767643838319,-157.64105094,0.0001667,2]
[400482879,1767643838330,-734.5740221,0.00016718,2]
[400482880,1767643838339,-200.0,0.00016835,2]
[400482881,1767643838349,-200.0,0.00016839,2]
[400482882,1767643838358,-734.5740221,0.00016866,2]
[400482883,1767643838368,-734.5740221,0.00017013,2]
[400482884,1767643838378,-734.5740221,0.00017161,2]
[400482885,1767643838387,-500.0,0.00017173,2]
[400482886,1767643838396,-501.70391837,0.00017173,2]
[400482887,1767643838405,-500.0,0.00017173,2]
[400482888,1767643838416,-500.0,0.00017173,2]
[400482889,1767643838425,-500.0,0.00017173,2]
[400482890,1767643838434,-500.0,0.00017173,2]
[400482891,1767643838444,-500.0,0.00017173,2]
[400482892,1767643838453,-218.2586549,0.00017173,2]
[400482893,1767643838463,-500.0,0.00017173,2]
[400482894,1767643838472,-500.0,0.00017173,2]
[400482895,1767643838481,-500.0,0.00017173,2]
[400482896,1767643838490,-635.71123212,0.00017173,2]